bitfinex/quotes_SOLUSD_20240620
["timestamp","ask_amount","ask_price","bid_price","bid_amount"]
[1718890625058,20.0,135.6,135.48,18.4516]
[1718890625359,7.3752,135.59,135.53,7.3779]
[1718890625529,27.376,135.58,135.52,7.3786]
[1718890625727,7.376,135.58,135.52,7.3786]
[1718890625961,20.0,135.65,135.48,24.6479]
[1718890626167,7.376,135.58,135.53,7.3784]
[1718890626455,7.3769,135.56,135.51,7.3792]
[1718890626962,7.3751,135.6,135.54,7.3775]
[1718890627141,7.3752,135.59,135.54,7.3775]
[1718890627332,7.3741,135.61,135.55,7.3772]
[1718890627749,7.3741,135.61,135.56,7.3767]
[1718890628059,7.3748,135.6,135.51,18.6176]
[1718890628244,7.3748,135.6,135.52,20.0]
[1718890628450,7.3751,135.59,135.54,7.3777]
[1718890628755,7.3746,135.6,135.54,7.3775]
[1718890628937,7.3758,135.58,135.52,20.0]
[1718890629139,7.378,135.54,135.44,6.0239]
[1718890629340,7.3784,135.53,135.44,6.0239]
[1718890629538,0.51,135.57,135.44,24.4821]
[1718890629539,7.3779,135.54,135.44,24.4821]
[1718890629740,7.3779,135.54,135.48,7.3806]
[1718890629954,0.17,135.53,135.48,7.381]
[1718890630160,7.3775,135.55,135.49,7.3805]
[1718890630463,20.17,135.54,135.46,18.4555]
[1718890630766,0.17,135.53,135.44,18.4583]
[1718890630935,7.3798,135.51,135.45,7.3824]
[1718890631132,0.17,135.52,135.42,15.0193]
[1718890631358,0.34,135.52,135.42,15.0193]
[1718890631537,7.7192,135.52,135.46,7.3818]
[1718890631731,0.17,135.51,135.41,18.4622]
[1718890631946,7.3807,135.49,135.43,7.3837]
[1718890632146,0.17,135.52,135.4,6.5607]
[1718890632360,20.17,135.56,135.49,7.3804]
[1718890632545,0.17,135.55,135.5,7.3797]
[1718890632746,0.34,135.55,135.43,36.9182]
[1718890633044,7.3782,135.54,135.49,7.3805]
[1718890633251,7.3775,135.55,135.46,18.6244]
[1718890633443,7.377,135.56,135.5,7.3799]
[1718890633641,7.3796,135.51,135.43,18.4583]
[1718890633849,20.0,135.5,135.44,7.383]
[1718890634048,20.0,135.5,135.37,16.2167]
[1718890634253,7.3811,135.49,135.37,16.2167]
[1718890634549,20.17,135.5,135.45,7.3827]
[1718890635335,20.17,135.5,135.42,18.4599]
[1718890635336,0.17,135.5,135.42,18.4599]
[1718890635652,0.17,135.5,135.41,7.3847]
[1718890635653,7.382,135.47,135.41,7.3847]
[1718890636160,7.7208,135.49,135.43,7.3835]
[1718890636361,7.7208,135.49,135.38,7.382]
[1718890636362,20.0,135.48,135.38,7.382]
[1718890636859,20.0,135.48,135.43,7.3836]
[1718890637044,27.3813,135.48,135.43,7.3836]
[1718890637248,27.3813,135.48,135.45,7.3824]
[1718890637249,20.0,135.48,135.45,7.3824]
[1718890637449,27.3804,135.5,135.44,7.383]
[1718890637646,7.381,135.49,135.39,0.17]
[1718890637845,0.17,135.51,135.41,0.17]
[1718890638175,7.3769,135.56,135.5,7.3797]
[1718890638333,7.3779,135.54,135.4,0.51]
[1718890638538,7.3797,135.51,135.45,7.3825]
[1718890638748,22.21,135.59,135.47,7.3813]
[1718890638951,22.21,135.59,135.45,18.4565]
[1718890639162,7.3784,135.53,135.48,7.3808]
[1718890639535,0.51,135.54,135.44,0.17]
[1718890639758,0.51,135.54,135.44,20.17]
[1718890639963,7.3788,135.53,135.47,7.3815]
[1718890640273,7.379,135.52,135.46,7.382]
[1718890640443,7.3792,135.52,135.46,7.382]
[1718890640645,7.3795,135.51,135.46,7.382]
[1718890640947,7.3822,135.46,135.41,7.3848]
[1718890641465,0.34,135.53,135.38,25.8472]
[1718890641639,0.17,135.51,135.38,7.382]
[1718890641842,0.17,135.49,135.36,24.8482]
[1718890642067,42.89,135.49,135.36,24.8482]
[1718890642370,0.17,135.47,135.38,7.3864]
[1718890642583,0.68,135.47,135.38,7.3864]
[1718890642750,20.68,135.47,135.39,7.386]
[1718890642953,20.68,135.47,135.36,18.4692]
[1718890643265,42.89,135.47,135.33,40.6821]
[1718890643467,42.89,135.47,135.36,7.3873]
[1718890644055,42.89,135.47,135.37,7.387]
[1718890644479,42.89,135.47,135.32,7.3896]
[1718890644649,42.89,135.47,135.31,18.4749]
[1718890644650,22.38,135.45,135.31,18.4749]
[1718890644848,0.17,135.43,135.33,7.389]
[1718890645170,0.68,135.43,135.34,7.3886]
[1718890645375,0.68,135.43,135.35,7.3882]
[1718890645886,0.0371867,167.92,135.31,18.4749]
[1718890645887,20.0,135.45,135.33,18.4733]
[1718890646172,20.0,135.45,135.3,36.9523]
[1718890646173,0.34,135.44,135.34,18.4706]
[1718890646359,0.34,135.45,135.38,7.3863]
[1718890646561,20.80107923,135.51,135.42,7.3843]
[1718890646562,20.0,135.47,135.42,7.3843]
[1718890646868,20.80107923,135.51,135.36,0.17]
[1718890646869,20.0,135.51,135.43,7.3836]
[1718890647067,20.0,135.58,135.43,7.3836]
[1718890647269,20.0,135.58,135.42,7.3841]
[1718890647455,22.21,135.57,135.42,7.3841]
[1718890647660,22.21,135.55,135.42,7.3841]
[1718890647864,22.21,135.53,135.43,7.3837]
[1718890648062,22.21,135.53,135.42,7.3842]
[1718890648373,0.68,135.52,135.37,24.6872]
[1718890648612,0.68,135.52,135.38,20.17]
[1718890648880,0.68,135.52,135.41,7.3846]
[1718890649187,0.68,135.52,135.39,0.17]
[1718890649344,22.21,135.53,135.39,0.34]
[1718890649542,22.21,135.53,135.4,0.17]
[1718890649543,20.0,135.52,135.4,0.17]
[1718890649768,20.0,135.52,135.39,0.34]
[1718890650259,42.21,135.53,135.39,0.34]
[1718890650574,0.51,135.52,135.42,7.3843]
[1718890650755,0.17,135.51,135.42,7.3843]
[1718890651252,0.17,135.51,135.41,7.3847]
[1718890651469,0.17,135.51,135.42,7.3844]
[1718890651969,0.17,135.51,135.38,38.4662]
[1718890651970,0.17,135.51,135.43,7.3837]
[1718890652396,20.0,135.53,135.39,0.17]
[1718890652699,20.0,135.54,135.45,18.4568]
[1718890652876,20.0,135.56,135.51,7.3794]
[1718890653194,20.80107923,135.65,135.52,7.3788]
[1718890653361,22.21,135.64,135.51,7.3792]
[1718890653699,22.21,135.64,135.46,18.4543]
[1718890653860,22.21,135.61,135.47,20.0]
[1718890654071,22.21,135.61,135.49,7.3806]
[1718890654363,0.17,135.6,135.44,18.4582]
[1718890654582,0.17,135.58,135.45,20.0]
[1718890654772,0.68,135.58,135.45,20.0]
[1718890655294,22.38,135.56,135.43,7.3836]
[1718890655597,0.17,135.54,135.42,7.3842]
[1718890655761,0.17,135.52,135.42,7.3842]
[1718890655967,20.68,135.52,135.43,7.3835]
[1718890656191,20.68,135.52,135.44,7.3832]
[1718890656489,20.68,135.52,135.38,21.93]
[1718890656490,20.34,135.52,135.38,21.93]
[1718890656689,32.09,135.57,135.46,7.382]
[1718890656690,0.17,135.55,135.46,7.382]
[1718890656896,0.68,135.55,135.44,7.3828]
[1718890657108,0.68,135.55,135.41,18.4611]
[1718890657391,0.68,135.55,135.45,7.3825]
[1718890658295,0.68,135.55,135.39,0.17]
[1718890658489,0.68,135.55,135.4,7.3852]
[1718890658696,22.38,135.52,135.4,7.3852]
[1718890658996,0.17,135.5,135.4,7.3852]
[1718890659693,0.17,135.5,135.41,7.3848]
[1718890660198,0.17,135.5,135.42,7.3842]
[1718890660580,0.17,135.5,135.41,7.3847]
[1718890660786,0.17,135.5,135.42,7.3842]
[1718890661591,0.17,135.5,135.39,18.464]
[1718890661592,0.17,135.5,135.43,7.3838]
[1718890662109,0.51,135.51,135.44,7.3832]
[1718890662271,20.17,135.52,135.44,7.3832]
[1718890662272,20.0,135.52,135.44,7.3832]
[1718890662596,20.0,135.54,135.47,7.3813]
[1718890662798,7.70621978,135.65,135.49,7.3804]
[1718890662799,20.0,135.58,135.49,7.3804]
[1718890663095,6.50367017,135.62,135.48,7.3809]
[1718890663270,22.21,135.61,135.48,7.3809]
[1718890663481,22.21,135.61,135.49,7.3804]
[1718890663671,22.21,135.61,135.45,18.4559]
[1718890663877,22.21,135.61,135.47,7.3812]
[1718890664497,23.80443212,135.61,135.46,7.3821]
[1718890664673,29.5147494,135.61,135.46,7.3821]
[1718890664995,22.21,135.57,135.41,18.4623]
[1718890665300,32.26,135.58,135.45,7.3823]
[1718890665301,0.17,135.55,135.45,7.3823]
[1718890665593,0.17,135.55,135.46,7.3818]
[1718890665917,0.17,135.55,135.47,7.3816]
[1718890666383,20.0,135.57,135.48,7.381]
[1718890666576,20.0,135.57,135.49,7.3801]
[1718890666990,42.21,135.6,135.49,7.3801]
[1718890667195,42.21,135.6,135.43,0.17]
[1718890667373,42.21,135.6,135.44,18.4581]
[1718890667573,42.21,135.6,135.47,7.3814]
[1718890667800,42.21,135.6,135.48,7.381]
[1718890667801,0.17,135.58,135.48,7.381]
[1718890667973,20.51,135.58,135.48,7.381]
[1718890668171,0.17,135.57,135.48,7.381]
[1718890668401,0.51,135.57,135.48,7.381]
[1718890668613,0.17,135.56,135.48,7.381]
[1718890668899,0.51,135.57,135.46,18.4544]
[1718890669096,20.0,135.58,135.47,18.4532]
[1718890669294,20.0,135.62,135.47,18.4532]
[1718890669504,20.0,135.62,135.51,7.3795]
[1718890669880,22.21,135.61,135.51,7.3795]
[1718890670079,20.0,135.6,135.51,7.3795]
[1718890670578,0.34,135.59,135.5,7.3798]
[1718890670982,0.34,135.6,135.51,7.3794]
[1718890671180,42.21,135.61,135.52,7.3787]
[1718890671181,20.0,135.61,135.52,7.3787]
[1718890671379,20.0,135.61,135.48,18.4518]
[1718890671380,20.0,135.62,135.5,18.449]
[1718890671576,36.58259327,135.65,135.54,7.3774]
[1718890671797,36.58259327,135.65,135.53,7.3781]
[1718890672102,58.79259327,135.65,135.53,7.3781]
[1718890672797,0.17,135.62,135.53,7.3781]
[1718890672995,20.68,135.62,135.53,7.3781]
[1718890673197,20.68,135.62,135.52,7.3788]
[1718890673397,42.89,135.62,135.48,0.17]
[1718890673697,20.68,135.62,135.49,18.4515]
[1718890673889,20.34,135.62,135.53,7.3782]
[1718890674700,20.34,135.62,135.52,7.3787]
[1718890674911,42.55,135.62,135.5,7.3795]
[1718890675091,0.34,135.61,135.5,7.3799]
[1718890675295,0.17,135.6,135.5,7.3799]
[1718890675492,20.34,135.6,135.51,7.3794]
[1718890675702,0.17,135.58,135.51,7.3794]
[1718890676005,0.34,135.58,135.51,7.3794]
[1718890676803,0.17,135.57,135.49,7.3801]
[1718890677012,0.34,135.57,135.49,7.3801]
[1718890677202,0.34,135.57,135.47,7.3813]
[1718890677203,0.34,135.56,135.47,7.3813]
[1718890677518,0.51,135.55,135.44,18.4573]
[1718890677692,0.17,135.54,135.45,20.0]
[1718890677884,0.17,135.54,135.49,7.3806]
[1718890678102,0.17,135.54,135.45,18.4558]
[1718890678103,0.17,135.54,135.48,7.3809]
[1718890678706,0.17,135.54,135.47,7.3815]
[1718890679402,20.0,135.6,135.52,7.3786]
[1718890679593,20.0,135.6,135.43,20.0]
[1718890679594,20.0,135.6,135.54,7.3775]
[1718890679796,20.0,135.62,135.53,7.3781]
[1718890680185,20.0,135.62,135.54,7.3778]
[1718890680484,20.0,135.62,135.51,18.4487]
[1718890680485,20.0,135.62,135.53,7.3783]
[1718890680892,20.0,135.62,135.48,59.2847]
[1718890681091,20.0,135.62,135.55,7.3768]
[1718890681289,20.0,135.65,135.56,7.3767]
[1718890681494,20.0,135.65,135.53,18.4458]
[1718890681808,23.01107923,135.7,135.53,18.4458]
[1718890681809,23.01107923,135.7,135.56,7.3765]
[1718890681993,28.81191987,135.7,135.56,7.3765]
[1718890682187,36.51238139,135.7,135.56,7.3765]
[1718890682390,36.51238139,135.7,135.54,22.21]
[1718890682598,7.70046152,135.7,135.61,7.3737]
[1718890682796,28.19737609,135.72,135.62,7.373]
[1718890683013,22.21,135.72,135.61,7.3739]
[1718890683195,20.0,135.71,135.61,7.3739]
[1718890683920,20.0,135.73,135.61,7.3739]
[1718890684212,42.21,135.73,135.61,7.3739]
[1718890684992,42.21,135.73,135.61,7.374]
[1718890685399,0.34,135.72,135.6,7.3744]
[1718890685621,0.34,135.71,135.61,7.374]
[1718890685916,0.34,135.71,135.56,6.3285]
[1718890685917,0.34,135.7,135.56,6.3285]
[1718890686100,0.17,135.68,135.6,7.3745]
[1718890686433,0.34,135.68,135.61,7.374]
[1718890686726,0.17,135.67,135.6,7.3745]
[1718890686895,0.51,135.67,135.6,7.3743]
[1718890687095,0.17,135.69,135.61,7.3737]
[1718890687402,0.34,135.69,135.61,7.3737]
[1718890687605,0.34,135.68,135.61,7.3737]
[1718890689600,0.34,135.68,135.62,7.3734]
[1718890689800,20.0,135.72,135.64,7.3721]
[1718890690022,20.0,135.72,135.6,18.4365]
[1718890690023,20.0,135.72,135.61,0.17]
[1718890690237,20.0,135.76,135.65,7.3715]
[1718890690512,25.77335942,135.76,135.66,7.3711]
[1718890690726,25.77335942,135.76,135.65,7.3716]
[1718890690897,47.98335942,135.76,135.65,7.3716]
[1718890691098,20.0,135.76,135.66,7.3711]
[1718890691313,20.0,135.79,135.66,7.3711]
[1718890691620,20.0,135.79,135.68,7.37]
[1718890692327,42.21,135.79,135.65,25.0722]
[1718890692632,42.21,135.79,135.66,27.3711]
[1718890692794,42.21,135.79,135.66,7.3711]
[1718890693417,42.21,135.79,135.67,7.3706]
[1718890693721,42.21,135.79,135.65,6.4736]
[1718890693722,42.21,135.79,135.61,6.2755]
[1718890693893,42.21,135.79,135.62,38.4327]
[1718890694099,42.21,135.79,135.64,7.3722]
[1718890694310,0.79335289,135.78,135.62,7.3734]
[1718890694517,22.21,135.74,135.61,7.3738]
[1718890694719,0.17,135.72,135.6,7.3746]
[1718890694920,0.68,135.72,135.63,7.3725]
[1718890695102,0.68,135.72,135.57,65.3654]
[1718890695304,0.68,135.72,135.61,18.434]
[1718890695524,0.68,135.72,135.64,7.372]
[1718890696026,20.0,135.74,135.61,22.21]
[1718890696205,20.0,135.76,135.67,7.3704]
[1718890696403,20.0,135.76,135.66,7.3711]
[1718890696725,22.21,135.77,135.62,20.0]
[1718890696895,22.21,135.75,135.63,7.3725]
[1718890697099,20.0,135.74,135.6,36.8718]
[1718890697327,0.51,135.73,135.68,7.3699]
[1718890697512,0.51,135.73,135.66,7.3712]
[1718890697833,0.51,135.73,135.65,7.3716]
[1718890697834,0.17,135.72,135.65,7.3716]
[1718890698215,0.17,135.72,135.64,7.3722]
[1718890698403,0.17,135.72,135.62,18.4325]
[1718890698601,0.17,135.72,135.63,20.0]
[1718890698816,0.51,135.73,135.64,18.4309]
[1718890699102,0.17,135.78,135.68,7.3698]
[1718890699302,22.55,135.78,135.67,7.3705]
[1718890699497,0.17,135.76,135.67,7.3705]
[1718890699703,0.34,135.76,135.67,7.3705]
[1718890700304,0.17,135.75,135.68,7.3702]
[1718890700520,0.34,135.75,135.68,7.3702]
[1718890700823,0.34,135.74,135.68,7.3702]
[1718890701155,0.34,135.74,135.69,7.3696]
[1718890701532,0.34,135.74,135.68,7.3701]
[1718890702622,0.17,135.73,135.67,7.3706]
[1718890703824,0.34,135.73,135.64,20.68]
[1718890704018,0.17,135.71,135.63,7.3728]
[1718890704215,0.17,135.71,135.64,7.3724]
[1718890704409,0.34,135.72,135.63,2.954436]
[1718890704616,0.34,135.72,135.67,7.3706]
[1718890704814,0.17,135.77,135.68,7.37]
[1718890705003,0.34,135.77,135.68,7.37]
[1718890705201,20.0,135.78,135.7,7.369]
[1718890705405,20.0,135.79,135.69,7.3694]
[1718890705635,42.21,135.79,135.68,7.3701]
[1718890705829,42.21,135.79,135.69,7.3696]
[1718890706316,20.0,135.79,135.64,22.38]
[1718890706524,20.0,135.79,135.72,7.368]
[1718890707203,20.0,135.79,135.67,18.4268]
[1718890707420,20.0,135.79,135.7,7.3689]
[1718890707617,20.0,135.79,135.67,18.4268]
[1718890707931,20.0,135.79,135.71,7.3686]
[1718890708130,20.0,135.79,135.7,7.369]
[1718890708425,20.0,135.79,135.68,18.4245]
[1718890708669,253.4,135.89,135.7,0.17]
[1718890708830,20.0,135.86,135.75,7.3661]
[1718890709008,20.0,135.86,135.74,7.3667]
[1718890709508,22.21,135.85,135.74,7.3667]
[1718890709716,20.0,135.84,135.74,7.3667]
[1718890710226,20.0,135.84,135.73,18.4187]
[1718890710419,42.21,135.86,135.76,7.3656]
[1718890710623,42.21,135.86,135.74,7.3668]
[1718890710934,42.21,135.86,135.75,7.3663]
[1718890711142,20.0,135.86,135.76,7.3658]
[1718890711430,7.3616,135.84,135.74,0.17]
[1718890711634,7.3616,135.84,135.79,7.364]
[1718890711933,20.0,135.86,135.75,18.4149]
[1718890711934,7.3622,135.83,135.78,7.3646]
[1718890712227,7.3618,135.84,135.78,7.3646]
[1718890712447,7.3621,135.83,135.78,7.3646]
[1718890712840,7.3621,135.83,135.77,7.3651]
[1718890713040,7.3621,135.83,135.78,7.3648]
[1718890713641,0.17,135.84,135.73,24.6212]
[1718890713939,7.3632,135.81,135.76,7.3656]
[1718890714721,0.68,135.85,135.73,6.2025]
[1718890714935,0.68,135.85,135.72,7.3677]
[1718890714936,22.21,135.84,135.72,7.3677]
[1718890715135,45.68,135.85,135.72,7.3677]
[1718890715136,7.3651,135.78,135.72,7.3677]
[1718890715332,7.5344,135.79,135.7,6.5227]
[1718890715530,0.17,135.82,135.7,28.7327]
[1718890715732,7.5331,135.82,135.77,7.3653]
[1718890715942,7.7033,135.81,135.76,7.3656]
[1718890716249,0.17,135.81,135.7,6.5227]
[1718890716425,7.3646,135.79,135.74,7.3667]
[1718890716620,0.17,135.81,135.72,20.0]
[1718890716621,0.34,135.8,135.72,20.0]
[1718890716826,7.3646,135.79,135.74,7.367]
[1718890717144,7.365,135.78,135.73,7.3673]
[1718890717447,0.17,135.8,135.75,7.3661]
[1718890717752,20.0,135.85,135.76,7.3658]
[1718890718048,20.0,135.85,135.77,7.365]
[1718890718247,7.3623,135.83,135.78,7.3646]
[1718890718542,7.3618,135.84,135.78,7.3646]
[1718890718735,7.3613,135.85,135.77,15.1587]
[1718890718937,22.21,135.89,135.79,7.3641]
[1718890719142,7.3613,135.85,135.79,7.3641]
[1718890719344,7.3613,135.85,135.77,15.1587]
[1718890719345,7.3613,135.85,135.8,7.3637]
[1718890720036,7.3613,135.85,135.79,7.364]
[1718890720251,7.3607,135.86,135.77,33.5712]
[1718890720547,1.71417467,135.89,135.86,7.3604]
[1718890720727,1.71417467,135.89,135.85,7.3609]
[1718890720922,1.71417467,135.89,135.86,7.3603]
[1718890721127,1.71417467,135.89,135.85,7.3609]
[1718890721628,1.71417467,135.89,135.83,22.1717]
[1718890721629,1.71417467,135.89,135.83,40.5757]
[1718890721862,1.71417467,135.89,135.86,7.3603]
[1718890722030,1.71417467,135.89,135.88,7.3594]
[1718890723063,1.71417467,135.89,135.87,7.3597]
[1718890723923,1.71417467,135.89,135.88,7.3594]
[1718890724359,1.1958,135.96,135.89,7.3586]
[1718890724559,1.1958,135.96,135.86,18.4012]
[1718890724560,7.3562,135.94,135.88,7.3592]
[1718890724853,7.3558,135.95,135.87,0.17]
[1718890725039,7.3558,135.95,135.89,7.3586]
[1718890725356,20.0,135.94,135.83,22.0017]
[1718890725527,42.13,135.94,135.79,21.8988]
[1718890725731,41.63,135.94,135.79,21.8988]
[1718890726030,7.3594,135.88,135.82,7.3625]
[1718890726235,1.71417467,135.93,135.79,21.8988]
[1718890726445,7.3588,135.9,135.84,7.3612]
[1718890726648,0.17,135.89,135.84,7.3612]
[1718890726836,7.3592,135.89,135.83,7.3619]
[1718890727154,0.17,135.92,135.83,18.405]
[1718890727155,0.34,135.92,135.83,18.405]
[1718890727336,0.34,135.92,135.85,7.3607]
[1718890727533,0.17,135.91,135.82,7.3623]
[1718890727858,0.17,135.91,135.81,7.363]
[1718890727859,0.34,135.91,135.81,7.363]
[1718890728159,0.34,135.91,135.84,7.3612]
[1718890728354,0.34,135.91,135.82,18.4063]
[1718890728558,0.34,135.91,135.79,21.8988]
[1718890728559,0.17,135.9,135.79,21.8988]
[1718890728744,0.17,135.9,135.85,7.3607]
[1718890728927,0.34,135.91,135.79,21.8988]
[1718890729135,20.0,135.98,135.88,7.3594]
[1718890729356,20.0,135.98,135.89,7.3585]
[1718890729559,22.13,136.0,135.84,18.4037]
[1718890729734,22.13,136.0,135.87,7.3595]
[1718890729933,22.13,136.0,135.86,7.3603]
[1718890730227,22.13,136.0,135.85,7.361]
[1718890730432,25.03997467,135.96,135.73,70.51290566]
[1718890730657,0.34,135.95,135.84,7.3613]
[1718890730963,20.0,135.95,135.88,7.3594]
[1718890731164,20.0,135.95,135.81,36.815]
[1718890731165,1.1958,135.96,135.87,7.3597]
[1718890732033,23.3258,135.96,135.81,55.222]
[1718890732232,65.0,135.95,135.82,20.0]
[1718890732432,20.0,135.94,135.82,20.0]
[1718890732631,0.34,135.93,135.83,18.4047]
[1718890732832,0.17,135.92,135.85,7.3607]
[1718890733127,0.17,135.92,135.83,18.4047]
[1718890733332,21.1958,135.96,135.84,42.13]
[1718890733529,21.1958,135.96,135.88,7.359]
[1718890733530,1.1958,135.96,135.88,7.359]
[1718890733747,1.1958,135.96,135.87,7.3599]
[1718890733958,20.0,135.99,135.88,7.3592]
[1718890734164,22.13,135.98,135.86,7.36]
[1718890734463,20.0,135.97,135.86,7.36]
[1718890734643,0.34,135.96,135.86,7.36]
[1718890734840,0.34,135.96,135.85,7.3609]
[1718890735344,45.34,135.96,135.86,7.3604]
[1718890735650,0.17,135.94,135.84,7.3613]
[1718890735855,45.34,135.94,135.84,7.3613]
[1718890736053,0.17,135.92,135.83,7.3619]
[1718890736255,22.47,135.92,135.81,7.3627]
[1718890736460,22.3,135.9,135.76,30.400074]
[1718890736758,0.17,135.88,135.79,7.3642]
[1718890736943,20.17,135.88,135.79,7.3642]
[1718890737140,0.17,135.86,135.76,24.8897]
[1718890737861,0.17,135.86,135.79,7.3642]
[1718890738158,0.17,135.86,135.76,24.8897]
[1718890738355,0.17,135.86,135.79,7.3637]
[1718890738544,0.17,135.86,135.78,7.3647]
[1718890738967,0.51,135.87,135.78,18.4121]
[1718890739270,0.17,135.86,135.81,7.3631]
[1718890739458,0.17,135.86,135.76,6.4759]
[1718890739654,0.17,135.86,135.79,7.3639]
[1718890740165,0.17,135.86,135.76,6.4759]
[1718890740365,0.17,135.86,135.78,7.3644]
[1718890740745,0.17,135.86,135.76,24.8905]
[1718890740949,0.17,135.86,135.79,7.3641]
[1718890741140,0.17,135.86,135.76,6.4759]
[1718890741335,0.17,135.86,135.78,7.3648]
[1718890741547,0.17,135.86,135.77,7.3652]
[1718890741971,0.17,135.86,135.72,6.3367]
[1718890742262,0.17,135.86,135.76,7.3655]
[1718890742769,0.17,135.86,135.74,7.3668]
[1718890743074,0.17,135.86,135.72,13.7047]
[1718890743262,0.17,135.84,135.72,6.3367]
[1718890743444,0.17,135.84,135.71,15.0277]
[1718890743445,22.81,135.84,135.71,7.3685]
[1718890743769,0.17,135.82,135.71,7.3685]
[1718890743943,0.68,135.82,135.72,7.368]
[1718890744141,0.68,135.82,135.68,40.5923]
[1718890744451,0.68,135.82,135.7,18.4229]
[1718890744652,0.68,135.82,135.68,22.168]
[1718890744841,0.68,135.82,135.73,7.3672]
[1718890745563,20.0,135.83,135.69,58.9766]
[1718890745868,54.22,135.85,135.7,20.0]
[1718890746054,54.22,135.85,135.74,7.3668]
[1718890746241,54.22,135.85,135.75,7.3664]
[1718890746446,54.22,135.85,135.74,7.3667]
[1718890746666,5.7755616,135.87,135.74,18.417]
[1718890746667,27.9055616,135.87,135.74,18.417]
[1718890746849,22.13,135.88,135.75,20.0]
[1718890747052,22.13,135.88,135.79,7.3642]
[1718890747254,7.70511252,135.92,135.76,18.4147]
[1718890747462,20.0,135.87,135.76,18.4147]
[1718890747651,22.13,135.9,135.74,18.4174]
[1718890747852,22.13,135.88,135.76,7.3656]
[1718890748061,20.0,135.87,135.76,7.3656]
[1718890748270,20.0,135.87,135.75,20.0]
[1718890748447,20.0,135.87,135.74,7.3668]
[1718890748650,0.17,135.89,135.74,7.3668]
[1718890748853,0.17,135.87,135.74,7.3668]
[1718890749066,0.17,135.85,135.74,7.3668]
[1718890749260,0.17,135.83,135.71,7.3682]
[1718890749459,87.81,135.83,135.72,7.368]
[1718890749654,42.81,135.83,135.73,7.3674]
[1718890749855,0.17,135.81,135.72,7.3681]
[1718890750050,20.68,135.81,135.72,7.3681]
[1718890750359,20.68,135.81,135.71,18.4214]
[1718890750551,20.68,135.81,135.74,7.3667]
[1718890750753,0.68,135.81,135.74,7.3667]
[1718890751175,0.51,135.81,135.74,7.3667]
[1718890751477,0.51,135.81,135.75,7.3663]
[1718890751771,0.51,135.81,135.74,7.3668]
[1718890752275,0.51,135.81,135.76,7.3657]
[1718890752577,0.51,135.81,135.76,7.3658]
[1718890752874,0.51,135.81,135.75,7.3662]
[1718890753472,297.84,135.95,135.77,7.3652]